bitfinex-derivatives/quotes_SOLF0:USTF0_20250923
["timestamp","ask_amount","ask_price","bid_price","bid_amount"]
[1758599119106,3.33237772,217.1,217.02,11.1632]
[1758599119299,3.33237772,217.09,217.02,11.1632]
[1758599119502,3.33237772,217.08,217.02,11.1632]
[1758599119703,7.35,217.12,217.02,11.1632]
[1758599119902,3.33192063,217.11,217.02,11.1632]
[1758599120208,3.33192063,217.1,217.02,11.1632]
[1758599120510,3.33192063,217.09,217.02,7.02]
[1758599120710,4.1416,217.11,217.02,7.02]
[1758599121008,7.35,217.12,216.99,119.46]
[1758599121009,7.35,217.09,216.99,119.46]
[1758599121304,4.1426,217.06,216.99,119.46]
[1758599121505,3.33178943,217.05,216.99,119.46]
[1758599121708,3.33178943,217.05,216.97,7.02]
[1758599121905,3.33178943,217.05,216.98,119.42]
[1758599123113,3.33178943,217.05,216.97,7.02]
[1758599123305,3.33178943,217.05,216.98,119.42]
[1758599124606,3.33178943,217.05,216.97,7.02]
[1758599124812,7.35,217.03,216.93,4.1448]
[1758599125014,3.33178943,217.02,216.94,93.3]
[1758599125413,7.47518943,217.02,216.94,93.3]
[1758599125616,7.12937389,217.01,216.92,126.4]
[1758599125914,3.33178943,217.0,216.92,126.4]
[1758599126113,3.33178943,216.99,216.92,7.02]
[1758599126308,9.64337138,217.03,216.92,124.02]
[1758599126509,7.13271846,217.02,216.92,126.38]
[1758599126808,4.1437,217.0,216.92,7.02]
[1758599127017,3.33482668,216.99,216.92,7.02]
[1758599127618,4.144,216.98,216.92,7.02]
[1758599127817,3.33482668,216.97,216.88,11.1659]
[1758599128013,3.33482668,216.97,216.89,119.34]
[1758599128717,4.1445,216.96,216.88,7.02]
[1758599128909,3.33482668,216.95,216.88,7.02]
[1758599129111,10.68482668,216.95,216.84,7.02]
[1758599129313,3.33482668,216.94,216.84,126.34]
[1758599130018,5.62819806,216.94,216.84,126.34]
[1758599130220,7.13667921,216.93,216.84,126.34]
[1758599130517,3.33482668,216.92,216.84,126.34]
[1758599130717,3.33482668,216.91,216.84,126.34]
[1758599130910,4.1452,216.92,216.84,126.34]
[1758599131108,3.3607685,216.91,216.84,126.34]
[1758599131314,4.1452,216.92,216.84,7.02]
[1758599131509,3.36102956,216.91,216.84,7.02]
[1758599131718,11.4947,216.95,216.84,7.02]
[1758599131917,7.16246774,216.94,216.84,7.02]
[1758599132119,7.16246774,216.93,216.84,7.02]
[1758599132319,3.36102799,216.92,216.84,7.02]
[1758599132612,3.36102799,216.91,216.84,7.02]
[1758599132818,3.36102799,216.91,216.79,11.5476]
[1758599132819,10.65102799,216.91,216.79,11.5476]
[1758599133119,7.16342599,216.9,216.8,119.3]
[1758599133314,7.16380776,216.89,216.8,119.3]
[1758599133514,3.36102799,216.88,216.8,119.3]
[1758599133817,3.36102799,216.87,216.8,119.3]
[1758599134012,3.36102799,216.86,216.8,119.3]
[1758599134214,4.1456,216.9,216.8,119.3]
[1758599134515,3.36087282,216.89,216.81,7.4]
[1758599134720,3.36087282,216.88,216.81,7.4]
[1758599135020,3.36087282,216.87,216.81,7.4]
[1758599135218,3.36109213,216.86,216.74,7.4]
[1758599135422,7.16213799,216.85,216.75,119.26]
[1758599135622,7.16213799,216.84,216.75,119.26]
[1758599135817,3.36109213,216.83,216.75,119.26]
[1758599136020,3.36109213,216.82,216.75,119.26]
[1758599136213,11.4364,216.86,216.75,119.26]
[1758599136416,7.15780981,216.85,216.75,119.26]
[1758599136620,3.35984428,216.84,216.75,119.26]
[1758599136821,3.35984428,216.83,216.75,119.26]
[1758599137020,3.35984428,216.82,216.75,119.26]
[1758599137216,7.29,216.86,216.75,119.26]
[1758599137422,7.15122669,216.85,216.75,119.26]
[1758599137717,7.29,216.86,216.75,119.26]
[1758599137718,3.35568441,216.84,216.76,64.5283]
[1758599137924,7.29,216.86,216.77,7.4]
[1758599138124,3.35547882,216.85,216.77,7.4]
[1758599138315,3.35547882,216.84,216.77,7.4]
[1758599138517,7.29,216.86,216.77,7.4]
[1758599138518,3.35547882,216.83,216.77,7.4]
[1758599138722,7.29,216.86,216.77,7.4]
[1758599139019,7.14764048,216.85,216.77,11.548]
[1758599139212,3.35397788,216.84,216.77,11.548]
[1758599139412,3.35397788,216.83,216.77,7.4]
[1758599139617,7.29,216.86,216.77,7.4]
[1758599139820,7.14386145,216.85,216.77,7.4]
[1758599140020,3.35223642,216.84,216.77,7.4]
[1758599140219,3.35223642,216.83,216.77,7.4]
[1758599140415,7.29,216.86,216.77,7.4]
[1758599140616,3.35085451,216.85,216.77,7.4]
[1758599140826,3.35085451,216.84,216.77,7.4]
[1758599141024,2.53551327,216.83,216.81,4.1472]
[1758599141235,13.50851006,216.94,216.84,7.4]
[1758599141422,3.78811469,216.93,216.84,7.4]
[1758599141623,7.29,216.97,216.87,4.1461]
[1758599141818,3.78736583,216.96,216.87,4.1461]
[1758599142023,3.78736583,216.95,216.84,7.4]
[1758599142328,3.78736583,216.94,216.84,7.4]
[1758599142533,3.78736583,216.93,216.84,7.4]
[1758599142739,21.13336234,216.97,216.84,7.4]
[1758599142938,3.78752494,216.96,216.84,7.4]
[1758599143136,3.78752494,216.95,216.84,7.4]
[1758599143341,3.78752494,216.94,216.87,4.1461]
[1758599143534,3.78752494,216.93,216.87,4.1461]
[1758599143734,21.13336234,216.97,216.87,4.1461]
[1758599143941,3.78698816,216.96,216.87,4.1461]
[1758599144134,3.78698816,216.95,216.87,4.1461]
[1758599144338,3.78698816,216.94,216.87,4.1461]
[1758599144528,21.13336234,216.97,216.87,4.1461]
[1758599144734,3.78664918,216.96,216.87,11.5461]
[1758599145043,3.78664918,216.95,216.87,11.5461]
[1758599145243,21.13336234,216.97,216.87,11.5461]
[1758599145439,3.78670756,216.96,216.87,11.5461]
[1758599145745,21.13336234,216.97,216.89,4.1457]
[1758599145943,3.78657014,216.96,216.89,4.1457]
[1758599146145,7.29,217.01,216.92,7.4]
[1758599146340,3.78634181,217.0,216.92,7.4]
[1758599146536,7.29,217.01,216.92,7.4]
[1758599146537,3.78634181,216.99,216.92,7.4]
[1758599146741,7.29,217.05,216.95,4.1446]
[1758599147044,3.78493288,217.04,216.95,4.1446]
[1758599147243,3.7845293,217.03,216.95,4.1446]
[1758599147444,13.70770355,217.04,216.95,4.1446]
[1758599147646,3.78487911,217.03,216.95,4.1446]
[1758599147846,7.29,217.05,216.95,4.1446]
[1758599148042,3.78487829,217.04,216.95,4.1446]
[1758599148237,3.78487829,217.03,216.92,7.4]
[1758599148436,7.29,217.05,216.92,7.4]
[1758599148636,3.78497256,217.04,216.92,7.4]
[1758599148832,3.78497256,217.03,216.92,7.4]
[1758599149044,13.88584223,217.04,216.92,7.4]
[1758599149249,3.78497256,217.03,216.92,7.4]
[1758599149444,7.29,217.05,216.92,7.4]
[1758599149750,3.78525232,217.04,216.92,7.4]
[1758599150047,7.29,217.05,216.94,4.1448]
[1758599150346,7.29,217.05,216.95,7.4]
[1758599150347,3.78517703,217.04,216.95,7.4]
[1758599150548,7.29,217.05,216.95,7.4]
[1758599150742,3.7851918,217.04,216.95,7.4]
[1758599150941,7.29,217.05,216.95,7.4]
[1758599151138,3.7851918,217.04,216.95,7.4]
[1758599151338,7.29,217.05,216.95,7.4]
[1758599151535,3.78549842,217.04,216.95,7.4]
[1758599151741,7.29,217.05,216.95,7.4]
[1758599151948,3.78549842,217.04,216.95,7.4]
[1758599152144,3.78549842,217.03,216.95,7.4]
[1758599152349,3.78549842,217.02,216.95,7.4]
[1758599152544,4.1429,217.04,216.95,7.4]
[1758599152735,3.78627273,217.03,216.95,7.4]
[1758599152941,3.78627273,217.02,216.95,7.4]
[1758599153140,7.11909244,217.01,216.95,7.4]
[1758599153342,3.33281971,217.0,216.91,7.4]
[1758599153538,3.33281971,216.99,216.91,7.4]
[1758599153747,4.1429,217.04,216.91,7.4]
[1758599153943,4.1433,217.02,216.91,7.4]
[1758599154149,7.14240493,217.01,216.91,7.4]
[1758599154351,7.14240493,217.0,216.91,7.4]
[1758599154650,7.14240493,216.99,216.91,7.4]
[1758599154950,3.33311913,216.98,216.91,7.4]
[1758599155146,3.33311913,216.97,216.91,7.4]
[1758599155348,7.29,216.99,216.91,7.4]
[1758599155547,3.33397147,216.98,216.91,7.4]
[1758599155848,3.33397147,216.97,216.91,7.4]
[1758599156151,3.33410812,216.96,216.88,114.9059]
[1758599156350,4.144,216.98,216.88,110.76]
[1758599156543,7.1449036,216.97,216.88,118.16]
[1758599156739,3.33430529,216.96,216.88,118.16]
[1758599156944,7.29,216.99,216.88,118.16]
[1758599157148,7.14476691,216.98,216.88,118.16]
[1758599157443,7.14476691,216.97,216.88,118.16]
[1758599157646,7.29,216.99,216.88,118.16]
[1758599157647,3.33423885,216.96,216.88,118.16]
[1758599157846,7.29,217.03,216.89,7.4]
[1758599158041,7.14600254,217.02,216.89,7.4]
[1758599158242,7.14600254,217.01,216.89,7.4]
[1758599158449,3.33476457,217.0,216.89,7.4]
[1758599158643,3.33476457,216.99,216.89,7.4]
[1758599158843,7.29,217.03,216.91,64.483]
[1758599159046,7.12990717,217.02,216.93,7.4]
[1758599159246,3.31888869,217.01,216.93,7.4]
[1758599159446,3.31888869,217.0,216.93,7.4]
[1758599159648,7.29,217.03,216.93,7.4]
[1758599159846,7.13025814,217.02,216.93,7.4]
[1758599160051,3.3191282,217.01,216.95,4.1446]
[1758599160252,7.29,217.03,216.95,4.1446]
[1758599160553,7.13054238,217.02,216.96,7.73]
[1758599160850,7.13054238,217.01,216.92,130.8151]
[1758599161153,7.13071786,217.0,216.92,130.8151]
[1758599161352,3.31926628,216.99,216.92,130.8151]
[1758599161547,7.29,217.03,216.92,130.8151]
[1758599161853,7.13271879,217.02,216.94,4.1448]
[1758599162046,7.13271879,217.01,216.94,64.4746]
[1758599162344,7.07,217.08,216.99,7.73]
[1758599162550,7.13218619,217.07,217.03,7.73]
[1758599162746,3.31992316,217.06,217.03,7.73]
[1758599162946,11.2116,217.12,217.03,7.73]
[1758599163252,7.13112318,217.11,217.03,7.73]
[1758599163549,7.13112318,217.1,217.03,7.73]
[1758599163750,11.2116,217.12,217.03,7.73]
[1758599163751,7.13112318,217.09,217.03,7.73]
[1758599163950,7.13112318,217.08,217.03,7.73]
[1758599164151,7.13112318,217.07,217.03,7.73]
[1758599164341,3.31941788,217.06,217.03,7.73]
[1758599164542,3.31941788,217.05,217.03,7.73]
[1758599164752,11.2116,217.12,217.03,7.73]
[1758599164950,7.13327585,217.11,217.03,7.73]
[1758599165153,7.13327585,217.1,217.03,7.73]
[1758599165356,7.07,217.08,216.97,7.73]
[1758599165560,7.07,217.06,216.97,7.73]
[1758599165759,7.07,217.04,216.96,118.86]
[1758599165957,7.13327585,217.03,216.96,118.86]
[1758599166163,7.13327585,217.02,216.96,118.86]
[1758599166348,3.32042017,217.01,216.97,7.73]
[1758599166552,12.10595258,217.09,216.97,7.73]
[1758599166751,4.1425,217.06,216.97,7.73]
[1758599166958,7.13702175,217.05,216.97,7.73]
[1758599167154,7.13702175,217.04,216.97,7.73]
[1758599167350,7.13736192,217.03,216.97,7.73]
[1758599167559,3.32211659,217.02,216.97,7.73]
[1758599167856,3.32211659,217.01,216.97,7.73]
[1758599168053,11.2125,217.06,216.97,7.73]
[1758599168359,4.1429,217.04,216.94,118.82]
[1758599168559,7.13775956,217.03,216.95,7.73]
[1758599168758,3.32246786,217.02,216.95,7.73]
[1758599168961,3.56610052,217.12,216.94,183.2933]
[1758599168962,5.03595258,217.14,217.07,11.8723]
[1758599169164,7.13505444,217.13,217.07,11.8723]
[1758599169349,3.32114297,217.12,217.07,4.1423]
[1758599169655,119.00369591,217.15,217.07,11.8723]
[1758599169855,7.13074796,217.14,217.08,7.73]
[1758599170057,14.20074796,217.13,217.05,118.8]
[1758599170359,7.13074796,217.12,217.05,118.8]
[1758599170549,7.12965796,217.11,217.05,118.8]
[1758599170752,7.07,217.13,217.03,7.73]
[1758599170753,3.31912177,217.1,217.03,126.51]
[1758599170953,119.00369591,217.15,217.04,7.73]
[1758599171154,7.12785935,217.14,217.04,7.73]
[1758599171456,7.12785935,217.13,217.04,7.73]
[1758599171655,3.31778468,217.12,217.04,7.73]
[1758599171855,3.31778468,217.11,217.04,7.73]
[1758599172152,119.00369591,217.15,217.04,7.73]
[1758599172354,3.31627722,217.14,217.04,7.73]
[1758599172550,3.31627722,217.13,217.04,7.73]
[1758599172764,119.00369591,217.15,217.07,4.1423]
[1758599172964,3.31418006,217.14,217.07,4.1423]
[1758599173164,3.31418006,217.13,217.07,4.1423]
[1758599173368,119.00369591,217.15,217.07,4.1423]
[1758599173563,7.1168797,217.14,217.06,7.73]
[1758599173763,3.31250992,217.13,217.06,126.47]
[1758599173968,3.31277444,217.12,217.06,126.47]
[1758599174164,119.00369591,217.15,217.06,126.47]
[1758599174362,7.11582257,217.14,217.06,126.47]
[1758599174560,3.31271051,217.13,217.06,126.47]
[1758599174763,4.1411,217.14,217.06,126.47]
[1758599174964,3.31147042,217.13,217.06,126.47]
[1758599175163,3.31147042,217.12,217.06,126.47]
[1758599175471,4.1411,217.14,217.06,7.73]
[1758599175672,7.11276987,217.13,217.06,7.73]
[1758599175968,3.31061191,217.12,217.06,7.73]
[1758599176265,119.00369591,217.15,217.06,7.73]
[1758599176465,7.11100399,217.14,217.06,7.73]
[1758599176767,3.30983366,217.13,217.06,7.73]
[1758599176964,119.00369591,217.15,217.06,7.73]
[1758599176965,123.14449591,217.15,217.06,7.73]
[1758599177164,7.1107407,217.14,217.06,7.73]
[1758599177363,3.30970592,217.13,217.06,7.73]
[1758599177564,7.58,217.14,217.06,7.73]
[1758599177765,3.30891343,217.13,217.06,7.73]
[1758599177967,7.58,217.14,217.06,7.73]
[1758599178162,3.30891421,217.13,217.06,7.73]
[1758599178359,7.58,217.14,217.06,7.73]
[1758599178564,3.30854129,217.13,217.06,11.8725]
[1758599178868,25.21915277,217.18,217.06,11.8725]
[1758599179168,7.10789149,217.17,217.06,11.8725]
[1758599179370,7.10789149,217.16,217.06,11.8725]
[1758599179570,7.10789149,217.15,217.06,11.8725]
[1758599179768,3.30831344,217.14,217.06,11.8725]
[1758599179971,25.21915277,217.18,217.06,11.8725]
[1758599180174,4.1406,217.16,217.06,7.73]
[1758599180374,7.10730742,217.15,217.06,7.73]
[1758599180573,7.10730742,217.14,217.06,7.73]
[1758599180773,3.30814422,217.13,217.06,7.73]
[1758599181072,4.1406,217.16,217.06,7.73]
[1758599181266,7.10905717,217.15,217.06,7.73]
[1758599181467,7.10905717,217.14,217.06,7.73]
[1758599181780,3.30869058,217.13,217.06,7.73]
[1758599181970,3.30869058,217.12,217.06,7.73]
[1758599182274,4.1406,217.16,217.06,7.73]
[1758599182469,7.11311591,217.15,217.08,7.34]
[1758599182776,3.31116857,217.14,217.1,7.34]
[1758599182978,3.31116857,217.13,217.1,7.34]
[1758599183278,11.7204,217.17,217.1,7.34]
[1758599183476,7.13565071,217.16,217.1,7.34]
[1758599183680,7.13565071,217.15,217.1,7.34]
[1758599183975,7.13565071,217.14,217.1,7.34]
[1758599184177,7.13764588,217.13,217.1,7.34]
[1758599184373,3.31412765,217.12,217.1,7.34]
[1758599184573,1.46564597,217.18,217.11,1.46564597]
[1758599184779,7.13926545,217.17,217.11,1.46564597]
[1758599184970,7.13926545,217.16,217.12,7.34]
[1758599185171,7.13926545,217.15,217.12,7.34]
[1758599185379,7.13926545,217.14,217.11,1.46564597]
[1758599185579,3.31541763,217.13,217.02,7.34]
[1758599185766,3.31541763,217.12,217.1,7.34]
[1758599185967,9.04564597,217.17,217.1,7.34]
[1758599186172,7.14318389,217.16,217.1,7.34]
[1758599186369,7.14318389,217.15,217.1,7.34]
[1758599186569,7.14318389,217.14,217.11,8.80564597]
[1758599186773,7.14318389,217.13,217.11,8.80564597]
[1758599187082,3.31570994,217.12,217.11,8.80564597]
[1758599187276,7.1452423,217.12,217.11,8.80564597]
[1758599187676,71.94742887,217.22,217.11,8.80564597]
[1758599187677,12.61595258,217.24,217.13,7.34]
[1758599187873,119.90227829,217.26,217.2,1.46564597]
[1758599188768,4.1384,217.28,217.2,5.60544597]
[1758599189175,4.1384,217.28,217.2,1.46564597]
[1758599189580,7.58,217.25,217.18,119.96564597]
[1758599190081,7.58,217.25,217.18,124.10584597]
[1758599190574,11.6183,217.29,217.18,122.6402]
[1758599191781,7.48,217.29,217.18,118.46]
[1758599192182,7.48,217.29,217.17,125.8]
[1758599192770,4.1384,217.28,217.17,129.9404]
[1758599192976,7.48,217.29,217.17,125.8]
[1758599193378,5.03595258,217.3,217.2,7.03]
[1758599193586,12.51595258,217.33,217.2,7.03]
[1758599193884,7.48,217.33,217.2,7.03]
[1758599194786,7.48,217.33,217.23,4.1392]
[1758599194975,7.48,217.33,217.24,7.03]
[1758599196792,4.138,217.3,217.24,7.03]
[1758599197272,7.48,217.33,217.24,7.03]
[1758599198982,7.48,217.34,217.21,118.34]
[1758599199687,4.1376,217.32,217.21,118.34]
[1758599199983,3.28551449,217.31,217.21,118.34]
[1758599200185,3.28551449,217.3,217.21,118.34]
[1758599200484,3.28551449,217.29,217.21,118.34]
[1758599200678,3.28551449,217.28,217.21,118.34]
[1758599200883,4.138,217.3,217.21,118.34]
[1758599201081,3.28567988,217.29,217.21,118.34]
[1758599201273,3.28567988,217.28,217.21,118.34]
[1758599201478,4.138,217.3,217.21,118.34]
[1758599201684,3.28652127,217.29,217.21,118.34]
[1758599201888,3.28652127,217.28,217.21,118.34]
[1758599202079,7.48,217.31,217.21,118.34]
[1758599202286,3.28645758,217.3,217.22,7.03]
[1758599202482,3.28645758,217.29,217.22,7.03]
[1758599202680,3.28645758,217.28,217.22,7.03]
[1758599202980,7.48,217.31,217.22,7.03]
[1758599203180,3.28731512,217.3,217.22,7.03]
[1758599203482,3.28731512,217.29,217.22,7.03]
[1758599203681,3.28731512,217.28,217.22,7.03]
[1758599203875,4.138,217.3,217.22,7.03]
[1758599204080,3.28782878,217.29,217.22,7.03]
[1758599204280,3.28782878,217.28,217.22,7.03]
[1758599204483,7.48,217.31,217.22,7.03]
[1758599204784,3.28837457,217.3,217.22,7.03]
[1758599204988,3.28837457,217.29,217.22,7.03]
[1758599205188,4.1374,217.34,217.24,7.03]
[1758599205390,3.28793653,217.33,217.24,7.03]
[1758599205584,3.28793653,217.32,217.24,7.03]
[1758599205891,3.28793653,217.31,217.24,7.03]
[1758599206082,3.28793653,217.3,217.24,7.03]
[1758599206281,3.28793653,217.29,217.24,7.03]
[1758599206482,4.1374,217.34,217.24,7.03]
[1758599206788,3.28880791,217.33,217.24,7.03]
[1758599207089,3.28880791,217.32,217.24,7.03]
[1758599207288,3.28880791,217.31,217.24,7.03]
[1758599207490,3.28880791,217.3,217.24,7.03]
[1758599207692,4.1374,217.34,217.24,7.03]
[1758599207991,3.28887001,217.33,217.24,7.03]
[1758599208187,3.28887001,217.32,217.24,7.03]
[1758599208387,3.28887001,217.31,217.24,7.03]
[1758599208588,3.28887001,217.3,217.24,7.03]
[1758599208787,3.28887001,217.29,217.23,4.1392]
[1758599209091,7.48,217.35,217.23,4.1392]
[1758599209092,7.48,217.32,217.23,118.2]
[1758599209293,3.28908588,217.31,217.24,7.03]
[1758599209593,3.28908588,217.3,217.24,7.03]
[1758599209792,3.28908588,217.29,217.24,7.03]
[1758599209992,4.1379,217.31,217.24,7.03]
[1758599210192,3.28932025,217.3,217.24,7.03]
[1758599210394,3.28932025,217.29,217.23,129.3693]
[1758599210596,7.48,217.32,217.24,8.49365125]
[1758599210889,3.28956081,217.31,217.25,4.1389]
[1758599211088,3.28956081,217.3,217.27,7.03]
[1758599211293,3.2907941,217.29,217.26,8.49365125]
[1758599211493,7.48,217.32,217.26,8.49365125]
[1758599211683,7.48,217.32,217.27,7.03]
[1758599211684,3.2907941,217.31,217.27,7.03]
[1758599211889,3.2907941,217.3,217.26,1.46365125]
[1758599212088,3.2907941,217.29,217.28,8.49365125]
[1758599212290,7.48,217.36,217.28,8.49365125]
[1758599212491,3.29167653,217.35,217.33,7.03]
[1758599212694,3.29167653,217.34,217.33,7.03]
[1758599213093,7.48,217.4,217.33,7.03]
[1758599213094,5.03595258,217.42,217.33,7.03]
[1758599213301,3.29008,217.41,217.39,7.03]
[1758599213490,12.51595258,217.47,217.39,7.03]
[1758599213700,4.1349,217.46,217.39,7.03]
[1758599214098,8.94365125,217.47,217.39,7.03]
[1758599214300,7.48,217.43,217.35,119.58365125]
[1758599215003,4.1353,217.44,217.36,7.03]
[1758599215208,4.1357,217.42,217.36,7.03]
[1758599216496,5.59885125,217.45,217.37,1.46365125]
[1758599216704,7.48,217.46,217.39,1.46365125]
[1758599217003,7.48,217.46,217.4,1.46365125]
[1758599217395,5.03595258,217.5,217.42,1.46365125]
[1758599217602,1.46365125,217.5,217.42,1.46365125]
[1758599218106,13.07755125,217.52,217.42,1.46365125]
[1758599218298,8.94365125,217.52,217.42,1.46365125]
[1758599218498,1.46365125,217.49,217.42,1.46365125]
[1758599218704,4.1346,217.48,217.41,7.03]
[1758599219101,13.63411184,217.53,217.41,7.03]
[1758599219306,1.46365125,217.51,217.42,1.46365125]
[1758599219513,4.1339,217.51,217.42,1.46365125]
[1758599219901,7.48,217.5,217.42,1.46365125]
[1758599220107,7.48,217.5,217.41,7.03]
[1758599220308,7.48,217.5,217.41,8.49365125]
[1758599220606,7.48,217.5,217.43,1.46365125]
[1758599220809,13.46890589,217.55,217.47,1.46365125]
[1758599221012,13.46890589,217.55,217.47,8.96365125]
[1758599221199,7.47,217.56,217.49,1.46365125]
[1758599221809,7.47,217.56,217.47,7.5]
[1758599221810,7.47,217.62,217.51,1.46365125]
[1758599222110,4.132,217.61,217.5,7.5]
[1758599222310,7.47,217.62,217.5,7.5]
[1758599222509,7.47,217.62,217.54,8.96365125]
[1758599223102,1.46365125,217.61,217.52,1.46365125]
[1758599223308,1.46365125,217.57,217.49,7.5]
[1758599223912,1.46365125,217.55,217.48,1.46365125]
[1758599224102,1.46365125,217.55,217.46,1.46365125]
[1758599224412,4.1323,217.6,217.52,1.46365125]
[1758599224913,1.46365125,217.59,217.51,7.5]
[1758599225108,7.47,217.58,217.51,7.5]
[1758599225513,4.1321,217.61,217.51,7.5]
[1758599225710,1.46365125,217.59,217.51,7.5]
[1758599225916,8.93365125,217.59,217.51,7.5]
[1758599226115,4.1329,217.57,217.51,7.5]
[1758599227018,7.47,217.65,217.56,1.46365125]
[1758599227215,1.46365125,217.64,217.56,1.46365125]
[1758599227414,1.46365125,217.62,217.54,8.96365125]
[1758599227615,4.1317,217.63,217.54,8.96365125]
[1758599227810,4.1317,217.63,217.56,1.46365125]
[1758599228618,4.1317,217.63,217.54,7.5]
[1758599229023,64.2749,217.62,217.54,7.5]
[1758599229217,7.47,217.61,217.5,7.5]
[1758599229617,4.1325,217.59,217.5,7.5]
[1758599230014,7.47,217.57,217.49,117.86]
[1758599230318,64.2924,217.56,217.46,7.5]
[1758599230717,4.1337,217.53,217.46,7.5]
[1758599230918,7.47,217.54,217.46,7.5]
[1758599231320,4.1335,217.54,217.46,7.5]
[1758599231523,7.47,217.59,217.46,7.5]
[1758599231717,4.133,217.57,217.46,11.6348]
[1758599231923,4.133,217.57,217.42,412.0929]
[1758599231924,64.2746,217.62,217.47,117.84]
[1758599232113,7.47,217.63,217.48,7.5]
[1758599232318,7.47,217.63,217.51,7.5]
[1758599232925,71.7426,217.63,217.51,7.5]
[1758599233124,71.7426,217.63,217.52,117.84]
[1758599233321,71.7426,217.63,217.51,7.5]
[1758599233528,4.1325,217.59,217.51,7.5]
[1758599234026,7.47,217.6,217.51,7.5]
[1758599235722,4.1314,217.65,217.53,7.64]
[1758599236029,4.1314,217.65,217.54,96.3]
[1758599236229,4.1318,217.63,217.53,125.44]
[1758599236726,7.69,217.66,217.53,125.44]
[1758599236926,4.1316,217.64,217.53,125.44]
[1758599237128,7.69,217.66,217.53,7.64]
[1758599237329,71.9591,217.64,217.53,7.64]
[1758599237924,4.1318,217.63,217.53,7.64]
[1758599240125,7.69,217.64,217.53,7.64]
[1758599240824,7.69,217.64,217.54,4.1333]
[1758599241925,71.936,217.72,217.57,7.64]
[1758599242828,4.1308,217.68,217.58,4.1326]
[1758599243129,4.1308,217.68,217.57,7.64]
[1758599243329,7.69,217.67,217.57,7.64]
[1758599243531,4.1312,217.66,217.57,7.64]
[1758599245832,7.69,217.67,217.57,7.64]
[1758599246037,7.69,217.67,217.58,4.1326]
[1758599247640,11.821,217.67,217.57,7.64]
[1758599247835,7.69,217.67,217.57,7.64]
[1758599248338,7.69,217.67,217.57,11.7728]
[1758599248540,7.69,217.67,217.57,9.91944604]
[1758599249226,7.69,217.67,217.59,4.1325]
[1758599249838,4.1312,217.66,217.57,7.64]
[1758599250139,7.69,217.65,217.53,41.88]
[1758599250526,7.69,217.65,217.53,7.64]
[1758599250731,2.27944604,217.64,217.53,7.64]
[1758599251536,11.7815,217.65,217.53,7.64]
[1758599251737,4.1317,217.63,217.53,7.64]
[1758599251934,7.65,217.62,217.53,7.64]
[1758599252940,11.7821,217.62,217.53,7.64]
[1758599254035,7.65,217.62,217.53,9.91944604]
[1758599254238,11.7812,217.66,217.53,9.91944604]
[1758599254638,11.7812,217.66,217.53,2.27944604]
[1758599254838,11.7812,217.66,217.54,7.26]
[1758599255038,11.7812,217.66,217.57,4.1328]
[1758599255444,11.7812,217.66,217.57,11.3928]
[1758599256249,7.65,217.66,217.59,4.1324]
[1758599256838,7.65,217.66,217.57,7.26]
[1758599258843,7.65,217.66,217.58,4.1326]
[1758599259047,18.85968907,217.7,217.58,4.1326]
[1758599259247,5.03595258,217.69,217.59,7.26]